[Event "Titled Tuesday Blitz May 4 2021"]
[White "Sanchez Alvares, Kelvin Antonio"]
[Black "Golizadeh, Asghar"]
[WhiteFideId "3906680"]
[BlackFideId "12505269"]
[WhiteElo "2247"]
[BlackElo "2403"]
[Result "1-0"]
[Round "09"]
[TimeControl "180+1"]
[Date "2021.05.04"]
[WhiteClock "0:00:05"]
[BlackClock "0:00:01"]

1. e4 {[%clk 0:03:00]}  c5 {[%clk 0:02:59]} 2. Nf3 {[%clk 0:03:00]}  d6 {[%clk 0:02:59]} 3. d4 {[%clk 0:02:59]}  cxd4 {[%clk 0:03:00]} 4. Nxd4 {[%clk 0:03:00]}  Nf6 {[%clk 0:03:00]} 5. Nc3 {[%clk 0:03:00]}  a6 {[%clk 0:03:01]} 6. Bg5 {[%clk 0:02:59]}  Nbd7 {[%clk 0:03:00]} 7. f4 {[%clk 0:02:53]}  Qc7 {[%clk 0:02:53]} 8. Qf3 {[%clk 0:02:50]}  h6 {[%clk 0:02:42]} 9. Bxf6 {[%clk 0:02:45]}  Nxf6 {[%clk 0:02:41]} 10. f5 {[%clk 0:02:45]}  Bd7 {[%clk 0:02:22]} 11. O-O-O {[%clk 0:02:43]}  Bc6 {[%clk 0:02:08]} 12. Bd3 {[%clk 0:02:39]}  Nd7 {[%clk 0:02:04]} 13. Qh5 {[%clk 0:02:30]}  Nf6 {[%clk 0:01:57]} 14. Qe2 {[%clk 0:02:24]}  Nd7 {[%clk 0:01:44]} 15. Qh5 {[%clk 0:02:21]}  Ne5 {[%clk 0:01:32]} 16. Rhe1 {[%clk 0:01:57]}  O-O-O {[%clk 0:01:20]} 17. Qe2 {[%clk 0:01:49]}  Kb8 {[%clk 0:01:15]} 18. Kb1 {[%clk 0:01:36]}  h5 {[%clk 0:01:10]} 19. Nd5 {[%clk 0:01:24]}  Bxd5 {[%clk 0:01:07]} 20. exd5 {[%clk 0:01:25]}  h4 {[%clk 0:00:56]} 21. Bxa6 {[%clk 0:01:03]}  bxa6 {[%clk 0:00:52]} 22. Qxa6 {[%clk 0:01:02]}  Qb7 {[%clk 0:00:48]} 23. Qa4 {[%clk 0:00:56]}  Qa7 {[%clk 0:00:39]} 24. Qb4+ {[%clk 0:00:44]}  Qb7 {[%clk 0:00:36]} 25. Qa4 {[%clk 0:00:37]}  Qa7 {[%clk 0:00:32]} 26. Qb4+ {[%clk 0:00:31]}  Qb7 {[%clk 0:00:31]} 27. Nb5 {[%clk 0:00:28]}  Rc8 {[%clk 0:00:25]} 28. Re3 {[%clk 0:00:28]}  Rc4 {[%clk 0:00:24]} 29. Qa5 {[%clk 0:00:28]}  Rc5 {[%clk 0:00:14]} 30. Rb3 {[%clk 0:00:27]}  Nc4 {[%clk 0:00:15]} 31. Qa4 {[%clk 0:00:19]}  Nb6 {[%clk 0:00:14]} 32. Qa3 {[%clk 0:00:14]}  Rxd5 {[%clk 0:00:12]} 33. Rxd5 {[%clk 0:00:11]}  Nxd5 {[%clk 0:00:08]} 34. Nxd6 {[%clk 0:00:10]}  exd6 {[%clk 0:00:07]} 35. Rxb7+ {[%clk 0:00:10]}  Kxb7 {[%clk 0:00:08]} 36. Qb3+ {[%clk 0:00:10]}  Kc6 {[%clk 0:00:08]} 37. Qc4+ {[%clk 0:00:10]}  Kd7 {[%clk 0:00:08]} 38. Qxd5 {[%clk 0:00:10]}  Be7 {[%clk 0:00:08]} 39. a4 {[%clk 0:00:09]}  Rb8 {[%clk 0:00:03]} 40. a5 {[%clk 0:00:10]}  Rc8 {[%clk 0:00:01]} 41. a6 {[%clk 0:00:09]}  Rc7 {[%clk 0:00:02]} 42. Qb5+ {[%clk 0:00:08]}  Kc8 {[%clk 0:00:02]} 43. Qd5 {[%clk 0:00:07]}  Bd8 {[%clk 0:00:03]} 44. Qxd6 {[%clk 0:00:06]}  Rd7 {[%clk 0:00:02]} 45. Qc6+ {[%clk 0:00:04]}  Rc7 {[%clk 0:00:03]} 46. Qd5 {[%clk 0:00:04]}  Rd7 {[%clk 0:00:02]} 47. Qc6+ {[%clk 0:00:04]}  Rc7 {[%clk 0:00:02]} 48. Qa8+ {[%clk 0:00:04]}  Kd7 {[%clk 0:00:02]} 49. a7 {[%clk 0:00:05]}  Rc8 {[%clk 0:00:01]} 50. Qxc8+ {[%clk 0:00:05]} 1-0


[Site "https://www.chess.com"]

[Event "Titled Tuesday Blitz May 4 2021"]
[White "Saraci, Nderim"]
[Black "Banawa, Joel"]
[WhiteFideId "6351921"]
[BlackFideId "2024055"]
[WhiteElo "2486"]
[BlackElo "2715"]
[Result "1-0"]
[Round "09"]
[TimeControl "180+1"]
[Date "2021.05.04"]
[WhiteClock "0:00:15"]
[BlackClock "0:00:01"]

1. d4 {[%clk 0:03:00]}  Nf6 {[%clk 0:03:00]} 2. Nf3 {[%clk 0:03:00]}  g6 {[%clk 0:03:00]} 3. g3 {[%clk 0:03:00]}  Bg7 {[%clk 0:03:01]} 4. Bg2 {[%clk 0:03:00]}  O-O {[%clk 0:03:02]} 5. O-O {[%clk 0:03:01]}  d6 {[%clk 0:03:03]} 6. c4 {[%clk 0:03:01]}  Nc6 {[%clk 0:03:03]} 7. Nc3 {[%clk 0:03:02]}  Bg4 {[%clk 0:03:04]} 8. d5 {[%clk 0:03:02]}  Na5 {[%clk 0:03:02]} 9. Nd2 {[%clk 0:03:01]}  c5 {[%clk 0:03:02]} 10. dxc6 {[%clk 0:03:00]}  Nxc6 {[%clk 0:03:00]} 11. Nde4 {[%clk 0:02:56]}  Nxe4 {[%clk 0:02:49]} 12. Bxe4 {[%clk 0:02:51]}  Rc8 {[%clk 0:02:42]} 13. Bd2 {[%clk 0:02:49]}  a6 {[%clk 0:02:22]} 14. Rc1 {[%clk 0:02:48]}  Bh3 {[%clk 0:02:15]} 15. Bg2 {[%clk 0:02:44]}  Bxg2 {[%clk 0:02:08]} 16. Kxg2 {[%clk 0:02:45]}  Ne5 {[%clk 0:02:00]} 17. b3 {[%clk 0:02:41]}  Qd7 {[%clk 0:01:44]} 18. a4 {[%clk 0:02:34]}  Rfd8 {[%clk 0:01:28]} 19. Be3 {[%clk 0:02:32]}  e6 {[%clk 0:01:24]} 20. Qd2 {[%clk 0:02:30]}  d5 {[%clk 0:01:24]} 21. cxd5 {[%clk 0:02:29]}  exd5 {[%clk 0:01:25]} 22. Bd4 {[%clk 0:02:27]}  b5 {[%clk 0:01:20]} 23. axb5 {[%clk 0:02:25]}  axb5 {[%clk 0:01:20]} 24. Rfd1 {[%clk 0:02:25]}  b4 {[%clk 0:01:18]} 25. Na4 {[%clk 0:02:21]}  Rxc1 {[%clk 0:01:15]} 26. Rxc1 {[%clk 0:02:19]}  Ng4 {[%clk 0:00:54]} 27. Bxg7 {[%clk 0:02:11]}  Kxg7 {[%clk 0:00:55]} 28. Qd4+ {[%clk 0:02:11]}  Kg8 {[%clk 0:00:46]} 29. Nc5 {[%clk 0:01:27]}  Qf5 {[%clk 0:00:45]} 30. h3 {[%clk 0:01:18]}  Nf6 {[%clk 0:00:44]} 31. Qxb4 {[%clk 0:01:16]}  d4 {[%clk 0:00:44]} 32. Qb6 {[%clk 0:01:14]}  Rd5 {[%clk 0:00:41]} 33. b4 {[%clk 0:01:10]}  Ne4 {[%clk 0:00:38]} 34. Qb8+ {[%clk 0:01:03]}  Kg7 {[%clk 0:00:37]} 35. Qf4 {[%clk 0:00:59]}  Qxf4 {[%clk 0:00:32]} 36. gxf4 {[%clk 0:00:58]}  Nc3 {[%clk 0:00:33]} 37. Rc2 {[%clk 0:00:51]}  Rf5 {[%clk 0:00:20]} 38. Nd3 {[%clk 0:00:43]}  Rb5 {[%clk 0:00:19]} 39. Kf3 {[%clk 0:00:42]}  Nd5 {[%clk 0:00:18]} 40. Rc4 {[%clk 0:00:39]}  Nc3 {[%clk 0:00:08]} 41. Rxd4 {[%clk 0:00:39]}  Rh5 {[%clk 0:00:08]} 42. Rc4 {[%clk 0:00:37]}  Nb5 {[%clk 0:00:07]} 43. Rc5 {[%clk 0:00:34]}  Nd4+ {[%clk 0:00:07]} 44. Ke3 {[%clk 0:00:28]}  Nf5+ {[%clk 0:00:07]} 45. Kd2 {[%clk 0:00:28]}  Rxh3 {[%clk 0:00:07]} 46. b5 {[%clk 0:00:29]}  Rh1 {[%clk 0:00:05]} 47. b6 {[%clk 0:00:28]}  Rb1 {[%clk 0:00:05]} 48. Rc6 {[%clk 0:00:25]}  Nd4 {[%clk 0:00:05]} 49. Rc4 {[%clk 0:00:23]}  Nf5 {[%clk 0:00:04]} 50. Rb4 {[%clk 0:00:22]}  Rxb4 {[%clk 0:00:02]} 51. Nxb4 {[%clk 0:00:23]}  Nd6 {[%clk 0:00:03]} 52. f3 {[%clk 0:00:22]}  h5 {[%clk 0:00:02]} 53. Ke1 {[%clk 0:00:22]}  h4 {[%clk 0:00:03]} 54. e4 {[%clk 0:00:21]}  Nb7 {[%clk 0:00:02]} 55. Nd5 {[%clk 0:00:20]}  f6 {[%clk 0:00:01]} 56. Kf2 {[%clk 0:00:20]}  g5 {[%clk 0:00:01]} 57. Kg2 {[%clk 0:00:19]}  Kg6 {[%clk 0:00:02]} 58. Kh3 {[%clk 0:00:19]}  Kf7 {[%clk 0:00:02]} 59. Kg4 {[%clk 0:00:18]}  Kg6 {[%clk 0:00:02]} 60. Ne7+ {[%clk 0:00:18]}  Kf7 {[%clk 0:00:02]} 61. Nf5 {[%clk 0:00:18]}  Kg6 {[%clk 0:00:02]} 62. fxg5 {[%clk 0:00:18]}  fxg5 {[%clk 0:00:03]} 63. Ne3 {[%clk 0:00:18]}  Kf6 {[%clk 0:00:03]} 64. Nf5 {[%clk 0:00:16]}  Kg6 {[%clk 0:00:03]} 65. e5 {[%clk 0:00:16]}  Nc5 {[%clk 0:00:01]} 66. Nd6 {[%clk 0:00:15]} 1-0


[Site "https://www.chess.com"]

[Event "Titled Tuesday Blitz May 4 2021"]
[White "Sargsyan, Anna M."]
[Black "Visakh N R"]
[WhiteFideId "13308130"]
[BlackFideId "25012223"]
[WhiteElo "2263"]
[BlackElo "2428"]
[Result "0-1"]
[Round "09"]
[TimeControl "180+1"]
[Date "2021.05.04"]
[WhiteClock "0:00:02"]
[BlackClock "0:00:04"]

1. d4 {[%clk 0:03:00]}  Nf6 {[%clk 0:02:59]} 2. c4 {[%clk 0:03:00]}  g6 {[%clk 0:02:57]} 3. g3 {[%clk 0:03:00]}  Bg7 {[%clk 0:02:55]} 4. Bg2 {[%clk 0:03:00]}  O-O {[%clk 0:02:55]} 5. Nc3 {[%clk 0:03:00]}  c6 {[%clk 0:02:54]} 6. Nf3 {[%clk 0:03:01]}  d5 {[%clk 0:02:54]} 7. cxd5 {[%clk 0:02:58]}  cxd5 {[%clk 0:02:51]} 8. Ne5 {[%clk 0:02:58]}  e6 {[%clk 0:02:41]} 9. O-O {[%clk 0:02:57]}  Nfd7 {[%clk 0:02:41]} 10. Nxd7 {[%clk 0:02:48]}  Bxd7 {[%clk 0:02:38]} 11. b3 {[%clk 0:02:47]}  Nc6 {[%clk 0:02:37]} 12. a4 {[%clk 0:02:48]}  Nxd4 {[%clk 0:02:33]} 13. Ba3 {[%clk 0:02:46]}  Re8 {[%clk 0:02:31]} 14. Rc1 {[%clk 0:02:46]}  Rc8 {[%clk 0:02:31]} 15. e3 {[%clk 0:02:44]}  Nf5 {[%clk 0:02:23]} 16. Ne2 {[%clk 0:02:37]}  Rxc1 {[%clk 0:02:12]} 17. Nxc1 {[%clk 0:02:33]}  Bf8 {[%clk 0:02:00]} 18. Bb2 {[%clk 0:02:32]}  Qe7 {[%clk 0:01:52]} 19. Nd3 {[%clk 0:02:32]}  Bg7 {[%clk 0:01:51]} 20. Ne5 {[%clk 0:02:28]}  Rc8 {[%clk 0:01:39]} 21. e4 {[%clk 0:01:53]}  dxe4 {[%clk 0:01:32]} 22. Bxe4 {[%clk 0:01:53]}  Be8 {[%clk 0:01:32]} 23. Qf3 {[%clk 0:01:43]}  Qc7 {[%clk 0:01:24]} 24. Nc4 {[%clk 0:00:53]}  Bxb2 {[%clk 0:01:22]} 25. Nxb2 {[%clk 0:00:54]}  Nd4 {[%clk 0:01:21]} 26. Qe3 {[%clk 0:00:50]}  Qc3 {[%clk 0:01:17]} 27. Nc4 {[%clk 0:00:39]}  Qxe3 {[%clk 0:00:58]} 28. fxe3 {[%clk 0:00:39]}  Nxb3 {[%clk 0:00:50]} 29. Nd6 {[%clk 0:00:40]}  Rb8 {[%clk 0:00:50]} 30. Bxb7 {[%clk 0:00:30]}  Nc5 {[%clk 0:00:48]} 31. Bf3 {[%clk 0:00:21]}  Bxa4 {[%clk 0:00:40]} 32. Rc1 {[%clk 0:00:21]}  Nd3 {[%clk 0:00:38]} 33. Rc7 {[%clk 0:00:18]}  Ne5 {[%clk 0:00:30]} 34. Be4 {[%clk 0:00:14]}  a5 {[%clk 0:00:27]} 35. Ra7 {[%clk 0:00:12]}  Rd8 {[%clk 0:00:17]} 36. Rxa5 {[%clk 0:00:08]}  Rxd6 {[%clk 0:00:17]} 37. Rxa4 {[%clk 0:00:07]}  Rd1+ {[%clk 0:00:16]} 38. Kg2 {[%clk 0:00:06]}  Rd2+ {[%clk 0:00:16]} 39. Kg1 {[%clk 0:00:04]}  Ng4 {[%clk 0:00:08]} 40. Ra3 {[%clk 0:00:03]}  Kg7 {[%clk 0:00:06]} 41. h3 {[%clk 0:00:03]}  Ne5 {[%clk 0:00:05]} 42. g4 {[%clk 0:00:02]}  Nc4 {[%clk 0:00:05]} 43. Rc3 {[%clk 0:00:01]}  Ne5 {[%clk 0:00:06]} 44. Bg2 {[%clk 0:00:01]}  Kf6 {[%clk 0:00:06]} 45. Kh2 {[%clk 0:00:01]}  g5 {[%clk 0:00:04]} 46. Kg3 {[%clk 0:00:02]}  Ng6 {[%clk 0:00:04]} 0-1


[Site "https://www.chess.com"]

[Event "Titled Tuesday Blitz May 4 2021"]
[White "Shahade, Gregory"]
[Black "Lewtak, Damian"]
[WhiteFideId "2009064"]
[BlackFideId "1141724"]
[WhiteElo "2627"]
[BlackElo "2291"]
[Result "0-1"]
[Round "09"]
[TimeControl "180+1"]
[Date "2021.05.04"]
[WhiteClock "0:00:16"]
[BlackClock "0:00:27"]

1. e4 {[%clk 0:03:00]}  c5 {[%clk 0:02:59]} 2. Nf3 {[%clk 0:03:00]}  d6 {[%clk 0:03:00]} 3. d4 {[%clk 0:02:59]}  cxd4 {[%clk 0:03:01]} 4. Nxd4 {[%clk 0:03:00]}  Nf6 {[%clk 0:03:01]} 5. Nc3 {[%clk 0:02:57]}  Nc6 {[%clk 0:03:02]} 6. f3 {[%clk 0:02:54]}  e5 {[%clk 0:03:01]} 7. Nb3 {[%clk 0:02:54]}  h5 {[%clk 0:03:01]} 8. Be3 {[%clk 0:02:50]}  Be7 {[%clk 0:03:00]} 9. Qd2 {[%clk 0:02:49]}  Be6 {[%clk 0:03:00]} 10. Nd5 {[%clk 0:02:49]}  Bxd5 {[%clk 0:02:56]} 11. exd5 {[%clk 0:02:50]}  Nb8 {[%clk 0:02:56]} 12. Be2 {[%clk 0:02:45]}  Nbd7 {[%clk 0:02:55]} 13. O-O {[%clk 0:02:45]}  O-O {[%clk 0:02:43]} 14. Na5 {[%clk 0:02:33]}  Qc7 {[%clk 0:02:39]} 15. c4 {[%clk 0:02:33]}  Rfc8 {[%clk 0:02:31]} 16. b4 {[%clk 0:02:31]}  Nb8 {[%clk 0:02:22]} 17. Rac1 {[%clk 0:02:16]}  b6 {[%clk 0:02:22]} 18. Nb3 {[%clk 0:02:14]}  Nbd7 {[%clk 0:02:22]} 19. f4 {[%clk 0:02:03]}  e4 {[%clk 0:02:21]} 20. Nd4 {[%clk 0:02:02]}  Qd8 {[%clk 0:02:14]} 21. Nc6 {[%clk 0:01:50]}  Qe8 {[%clk 0:02:14]} 22. Bd4 {[%clk 0:01:50]}  Bf8 {[%clk 0:02:06]} 23. Qe3 {[%clk 0:01:45]}  Rc7 {[%clk 0:02:02]} 24. Qh3 {[%clk 0:01:44]}  b5 {[%clk 0:01:51]} 25. cxb5 {[%clk 0:01:18]}  Nxd5 {[%clk 0:01:50]} 26. Qxh5 {[%clk 0:01:18]}  N7f6 {[%clk 0:01:49]} 27. Qg5 {[%clk 0:01:07]}  Rac8 {[%clk 0:01:35]} 28. Bc4 {[%clk 0:01:02]}  Nxb4 {[%clk 0:01:34]} 29. Bxf6 {[%clk 0:00:55]}  d5 {[%clk 0:01:30]} 30. Nxb4 {[%clk 0:00:47]}  Rxc4 {[%clk 0:01:17]} 31. Rxc4 {[%clk 0:00:47]}  Rxc4 {[%clk 0:01:16]} 32. Nxd5 {[%clk 0:00:43]}  g6 {[%clk 0:01:06]} 33. f5 {[%clk 0:00:41]}  e3 {[%clk 0:00:55]} 34. fxg6 {[%clk 0:00:37]}  fxg6 {[%clk 0:00:54]} 35. Bb2 {[%clk 0:00:16]}  Bg7 {[%clk 0:00:27]} 0-1


[Site "https://www.chess.com"]

[Event "Titled Tuesday Blitz May 4 2021"]
[White "Sharapov, Evgeny"]
[Black "Skoberne, Jure"]
[WhiteFideId "14103133"]
[BlackFideId "14604299"]
[WhiteElo "2367"]
[BlackElo "2559"]
[Result "0-1"]
[Round "09"]
[TimeControl "180+1"]
[Date "2021.05.04"]
[WhiteClock "0:00:23"]
[BlackClock "0:00:08"]

1. c4 {[%clk 0:02:59]}  Nf6 {[%clk 0:02:59]} 2. Nc3 {[%clk 0:02:59]}  g6 {[%clk 0:03:00]} 3. Nf3 {[%clk 0:02:58]}  Bg7 {[%clk 0:03:00]} 4. g3 {[%clk 0:02:58]}  O-O {[%clk 0:03:00]} 5. Bg2 {[%clk 0:02:58]}  d6 {[%clk 0:03:00]} 6. O-O {[%clk 0:02:57]}  e5 {[%clk 0:03:01]} 7. d3 {[%clk 0:02:57]}  Nc6 {[%clk 0:02:59]} 8. Bg5 {[%clk 0:02:56]}  h6 {[%clk 0:02:54]} 9. Bxf6 {[%clk 0:02:56]}  Bxf6 {[%clk 0:02:55]} 10. Rb1 {[%clk 0:02:55]}  Bg7 {[%clk 0:02:54]} 11. b4 {[%clk 0:02:53]}  f5 {[%clk 0:02:55]} 12. Qc1 {[%clk 0:02:50]}  g5 {[%clk 0:02:45]} 13. b5 {[%clk 0:02:48]}  Ne7 {[%clk 0:02:45]} 14. Nd2 {[%clk 0:02:44]}  e4 {[%clk 0:02:32]} 15. dxe4 {[%clk 0:02:41]}  f4 {[%clk 0:02:32]} 16. Nd5 {[%clk 0:02:38]}  Ng6 {[%clk 0:02:32]} 17. c5 {[%clk 0:02:30]}  Rf7 {[%clk 0:01:32]} 18. cxd6 {[%clk 0:02:28]}  Qxd6 {[%clk 0:01:28]} 19. Nc4 {[%clk 0:02:24]}  Qf8 {[%clk 0:01:16]} 20. Qd2 {[%clk 0:02:10]}  Be6 {[%clk 0:01:16]} 21. Na5 {[%clk 0:02:01]}  Rb8 {[%clk 0:00:59]} 22. Rbc1 {[%clk 0:01:59]}  Be5 {[%clk 0:00:59]} 23. Nc4 {[%clk 0:01:57]}  Bg7 {[%clk 0:00:52]} 24. Qb4 {[%clk 0:01:49]}  c6 {[%clk 0:00:36]} 25. Qxf8+ {[%clk 0:01:47]}  Bxf8 {[%clk 0:00:37]} 26. bxc6 {[%clk 0:01:46]}  bxc6 {[%clk 0:00:37]} 27. Na5 {[%clk 0:01:29]}  cxd5 {[%clk 0:00:37]} 28. exd5 {[%clk 0:01:29]}  Bg4 {[%clk 0:00:37]} 29. Rc2 {[%clk 0:01:17]}  Re8 {[%clk 0:00:18]} 30. d6 {[%clk 0:01:12]}  Bxd6 {[%clk 0:00:16]} 31. Bd5 {[%clk 0:01:11]}  Be6 {[%clk 0:00:16]} 32. Bxe6 {[%clk 0:01:09]}  Rxe6 {[%clk 0:00:17]} 33. Rc6 {[%clk 0:01:07]}  fxg3 {[%clk 0:00:15]} 34. hxg3 {[%clk 0:01:06]}  Ne5 {[%clk 0:00:15]} 35. Ra6 {[%clk 0:01:05]}  Ref6 {[%clk 0:00:09]} 36. Rd1 {[%clk 0:00:58]}  Bc5 {[%clk 0:00:08]} 37. Rxf6 {[%clk 0:00:57]}  Rxf6 {[%clk 0:00:09]} 38. e3 {[%clk 0:00:57]}  Bb6 {[%clk 0:00:06]} 39. Nb7 {[%clk 0:00:53]}  Ng4 {[%clk 0:00:06]} 40. Rf1 {[%clk 0:00:42]}  Rxf2 {[%clk 0:00:05]} 41. Rxf2 {[%clk 0:00:40]}  Bxe3 {[%clk 0:00:05]} 42. Kg2 {[%clk 0:00:38]}  Bxf2 {[%clk 0:00:06]} 43. Kf3 {[%clk 0:00:37]}  h5 {[%clk 0:00:07]} 44. Nd8 {[%clk 0:00:36]}  Bb6 {[%clk 0:00:05]} 45. Ne6 {[%clk 0:00:35]}  Ne5+ {[%clk 0:00:06]} 46. Ke4 {[%clk 0:00:35]}  Nf7 {[%clk 0:00:07]} 47. Kf5 {[%clk 0:00:34]}  Be3 {[%clk 0:00:07]} 48. Kg6 {[%clk 0:00:33]}  h4 {[%clk 0:00:07]} 49. gxh4 {[%clk 0:00:33]}  gxh4 {[%clk 0:00:08]} 50. Nc7 {[%clk 0:00:23]}  h3 {[%clk 0:00:08]} 51. Nd5 {[%clk 0:00:23]}  Bg5 {[%clk 0:00:08]} 0-1


[Site "https://www.chess.com"]

[Event "Titled Tuesday Blitz May 4 2021"]
[White "Sikorova, Olga"]
[Black "Torkkola, Henri"]
[WhiteFideId "307033"]
[BlackFideId "507660"]
[WhiteElo "2188"]
[BlackElo "2137"]
[Result "0-1"]
[Round "09"]
[TimeControl "180+1"]
[Date "2021.05.04"]
[WhiteClock "0:00:12"]
[BlackClock "0:00:19"]

1. c4 {[%clk 0:03:00]}  g6 {[%clk 0:02:59]} 2. g3 {[%clk 0:02:59]}  Bg7 {[%clk 0:02:59]} 3. Bg2 {[%clk 0:03:00]}  d6 {[%clk 0:03:00]} 4. e4 {[%clk 0:02:58]}  e5 {[%clk 0:02:59]} 5. Ne2 {[%clk 0:02:57]}  Ne7 {[%clk 0:02:59]} 6. O-O {[%clk 0:02:57]}  O-O {[%clk 0:02:59]} 7. Nbc3 {[%clk 0:02:58]}  Nbc6 {[%clk 0:02:59]} 8. d3 {[%clk 0:02:54]}  f5 {[%clk 0:02:58]} 9. Nd5 {[%clk 0:02:51]}  h6 {[%clk 0:02:43]} 10. Be3 {[%clk 0:02:40]}  Kh7 {[%clk 0:02:40]} 11. b4 {[%clk 0:02:25]}  Nxd5 {[%clk 0:02:33]} 12. exd5 {[%clk 0:02:23]}  Nxb4 {[%clk 0:02:32]} 13. a3 {[%clk 0:02:15]}  Na6 {[%clk 0:02:32]} 14. Rb1 {[%clk 0:02:11]}  b6 {[%clk 0:02:31]} 15. d4 {[%clk 0:02:10]}  exd4 {[%clk 0:02:27]} 16. Nxd4 {[%clk 0:02:08]}  Bd7 {[%clk 0:02:24]} 17. Ne6 {[%clk 0:02:05]}  Bxe6 {[%clk 0:02:22]} 18. dxe6 {[%clk 0:02:05]}  Rb8 {[%clk 0:02:11]} 19. Qd5 {[%clk 0:02:03]}  Qf6 {[%clk 0:02:05]} 20. Rfe1 {[%clk 0:01:57]}  Rfe8 {[%clk 0:02:04]} 21. Bc1 {[%clk 0:01:48]}  Nc5 {[%clk 0:01:54]} 22. Bb2 {[%clk 0:01:47]}  Qf8 {[%clk 0:01:50]} 23. Bxg7 {[%clk 0:01:37]}  Qxg7 {[%clk 0:01:50]} 24. Re2 {[%clk 0:01:36]}  Re7 {[%clk 0:01:45]} 25. Rbe1 {[%clk 0:01:29]}  Rbe8 {[%clk 0:01:45]} 26. h3 {[%clk 0:01:28]}  Qf6 {[%clk 0:01:44]} 27. g4 {[%clk 0:01:25]}  fxg4 {[%clk 0:01:32]} 28. hxg4 {[%clk 0:01:25]}  Rxe6 {[%clk 0:01:31]} 29. Rxe6 {[%clk 0:01:25]}  Rxe6 {[%clk 0:01:31]} 30. Rxe6 {[%clk 0:01:24]}  Qxe6 {[%clk 0:01:32]} 31. Qd4 {[%clk 0:01:21]}  Qe5 {[%clk 0:01:26]} 32. Qd2 {[%clk 0:01:11]}  Kg7 {[%clk 0:01:07]} 33. Bd5 {[%clk 0:01:10]}  Ne6 {[%clk 0:00:59]} 34. a4 {[%clk 0:01:00]}  a5 {[%clk 0:00:57]} 35. Bxe6 {[%clk 0:00:54]}  Qxe6 {[%clk 0:00:58]} 36. Qd4+ {[%clk 0:00:54]}  Qe5 {[%clk 0:00:55]} 37. Qd2 {[%clk 0:00:51]}  Qe4 {[%clk 0:00:50]} 38. Qb2+ {[%clk 0:00:48]}  Kh7 {[%clk 0:00:49]} 39. Qf6 {[%clk 0:00:44]}  Qxg4+ {[%clk 0:00:48]} 40. Kf1 {[%clk 0:00:34]}  Qxc4+ {[%clk 0:00:47]} 41. Kg2 {[%clk 0:00:34]}  Qe4+ {[%clk 0:00:43]} 42. f3 {[%clk 0:00:30]}  Qe8 {[%clk 0:00:32]} 43. Qc3 {[%clk 0:00:26]}  Qe7 {[%clk 0:00:30]} 44. Qc6 {[%clk 0:00:26]}  h5 {[%clk 0:00:29]} 45. Kg3 {[%clk 0:00:25]}  Qe5+ {[%clk 0:00:28]} 46. Kg2 {[%clk 0:00:25]}  Qe7 {[%clk 0:00:26]} 47. Kg3 {[%clk 0:00:25]}  Kh6 {[%clk 0:00:26]} 48. Kf2 {[%clk 0:00:23]}  g5 {[%clk 0:00:26]} 49. Kg3 {[%clk 0:00:22]}  h4+ {[%clk 0:00:25]} 50. Kg2 {[%clk 0:00:20]}  Qf7 {[%clk 0:00:22]} 51. Kf2 {[%clk 0:00:19]}  Qa2+ {[%clk 0:00:21]} 52. Ke3 {[%clk 0:00:18]}  Qb3+ {[%clk 0:00:20]} 53. Ke4 {[%clk 0:00:16]}  Qb1+ {[%clk 0:00:20]} 54. Kd5 {[%clk 0:00:13]}  Qf5+ {[%clk 0:00:18]} 55. Kd4 {[%clk 0:00:12]}  Qc5+ {[%clk 0:00:19]} 0-1


[Site "https://www.chess.com"]

[Event "Titled Tuesday Blitz May 4 2021"]
[White "Steil-Antoni, Fiona"]
[Black "Kalajzic, Ivan"]
[WhiteFideId "4001249"]
[BlackFideId "14506378"]
[WhiteElo "2059"]
[BlackElo "2163"]
[Result "0-1"]
[Round "09"]
[TimeControl "180+1"]
[Date "2021.05.04"]
[WhiteClock "0:00:03"]
[BlackClock "0:00:13"]

1. e4 {[%clk 0:03:00]}  Nc6 {[%clk 0:02:56]} 2. Nf3 {[%clk 0:03:00]}  d6 {[%clk 0:02:56]} 3. d4 {[%clk 0:02:59]}  g6 {[%clk 0:02:56]} 4. Be3 {[%clk 0:02:57]}  Bg7 {[%clk 0:02:56]} 5. c3 {[%clk 0:02:57]}  Nf6 {[%clk 0:02:55]} 6. Bd3 {[%clk 0:02:57]}  e5 {[%clk 0:02:54]} 7. h3 {[%clk 0:02:53]}  O-O {[%clk 0:02:54]} 8. O-O {[%clk 0:02:53]}  Re8 {[%clk 0:02:54]} 9. d5 {[%clk 0:02:50]}  Ne7 {[%clk 0:02:54]} 10. Qd2 {[%clk 0:02:51]}  Nh5 {[%clk 0:02:52]} 11. g4 {[%clk 0:02:37]}  Nf4 {[%clk 0:02:47]} 12. Bxf4 {[%clk 0:02:32]}  exf4 {[%clk 0:02:48]} 13. Qxf4 {[%clk 0:02:33]}  f6 {[%clk 0:02:41]} 14. Nbd2 {[%clk 0:02:27]}  g5 {[%clk 0:02:40]} 15. Qg3 {[%clk 0:02:22]}  Ng6 {[%clk 0:02:40]} 16. Nd4 {[%clk 0:02:16]}  Nf4 {[%clk 0:02:27]} 17. Rae1 {[%clk 0:02:16]}  h5 {[%clk 0:02:24]} 18. Nf5 {[%clk 0:02:08]}  Bf8 {[%clk 0:01:44]} 19. Bc2 {[%clk 0:01:54]}  h4 {[%clk 0:01:40]} 20. Qe3 {[%clk 0:01:38]}  a5 {[%clk 0:01:29]} 21. Kh2 {[%clk 0:01:34]}  a4 {[%clk 0:01:27]} 22. Qd4 {[%clk 0:01:25]}  b6 {[%clk 0:01:19]} 23. c4 {[%clk 0:00:52]}  Re5 {[%clk 0:01:13]} 24. Nf3 {[%clk 0:00:40]}  Qe8 {[%clk 0:01:10]} 25. Nxe5 {[%clk 0:00:37]}  dxe5 {[%clk 0:01:10]} 26. Qc3 {[%clk 0:00:34]}  Bxf5 {[%clk 0:01:03]} 27. exf5 {[%clk 0:00:32]}  Bc5 {[%clk 0:01:00]} 28. b4 {[%clk 0:00:18]}  Bd4 {[%clk 0:00:52]} 29. Qf3 {[%clk 0:00:18]}  a3 {[%clk 0:00:49]} 30. Bb3 {[%clk 0:00:17]}  Kg7 {[%clk 0:00:48]} 31. c5 {[%clk 0:00:15]}  Qb5 {[%clk 0:00:44]} 32. d6 {[%clk 0:00:08]}  Ra7 {[%clk 0:00:31]} 33. dxc7 {[%clk 0:00:08]}  Rxc7 {[%clk 0:00:31]} 34. cxb6 {[%clk 0:00:08]}  Qxb6 {[%clk 0:00:31]} 35. Rc1 {[%clk 0:00:08]}  Rxc1 {[%clk 0:00:27]} 36. Rxc1 {[%clk 0:00:08]}  Bxf2 {[%clk 0:00:28]} 37. b5 {[%clk 0:00:05]}  Bg3+ {[%clk 0:00:27]} 38. Kh1 {[%clk 0:00:05]}  Nxh3 {[%clk 0:00:25]} 39. Qc3 {[%clk 0:00:02]}  Nf2+ {[%clk 0:00:17]} 40. Kg2 {[%clk 0:00:02]}  Nxg4 {[%clk 0:00:15]} 41. Qc7+ {[%clk 0:00:02]}  Qxc7 {[%clk 0:00:15]} 42. Rxc7+ {[%clk 0:00:03]}  Kf8 {[%clk 0:00:15]} 43. b6 {[%clk 0:00:03]}  Ne3+ {[%clk 0:00:13]} 44. Kh3 {[%clk 0:00:03]}  g4# {[%clk 0:00:13]} 0-1


[Site "https://www.chess.com"]